bitfinex/quotes_SOLUSD_20240713
["timestamp","ask_amount","ask_price","bid_price","bid_amount"]
[1720860267485,45.0,139.49,139.43,11.53]
[1720860267969,56.53,139.49,139.43,11.53]
[1720860268686,45.0,139.49,139.44,11.53]
[1720860272984,45.0,139.49,139.43,11.53]
[1720860273881,45.0,139.49,139.44,11.53]
[1720860277963,45.0,139.49,139.45,11.53]
[1720860279290,45.0,139.49,139.44,11.53]
[1720860288070,56.53,139.49,139.43,11.53]
[1720860289193,11.53,139.48,139.43,11.53]
[1720860293393,11.53,139.48,139.4,20.0]
[1720860293394,60.0675,139.47,139.4,20.0]
[1720860293579,60.0675,139.47,139.42,11.53]
[1720860301298,71.5975,139.47,139.37,25.30637416]
[1720860301502,17.5637,139.46,139.35,16.63192076]
[1720860301879,45.0,139.45,139.4,11.53]
[1720860302392,45.0,139.45,139.35,16.63192076]
[1720860302594,45.0,139.45,139.34,16.2945]
[1720860302595,26.5975,139.43,139.34,16.2945]
[1720860302793,11.53,139.42,139.37,11.53]
[1720860303304,26.5975,139.43,139.37,11.53]
[1720860303598,45.0,139.42,139.37,11.53]
[1720860304096,56.53,139.42,139.37,11.53]
[1720860304899,56.53,139.42,139.35,1.43487762]
[1720860305108,56.53,139.42,139.37,11.53]
[1720860306781,45.0,139.42,139.37,11.53]
[1720860307111,45.0,139.42,139.38,11.53]
[1720860307293,45.0,139.42,139.39,11.53]
[1720860307805,45.0,139.42,139.38,11.53]
[1720860309604,45.0,139.42,139.33,1.43497686]
[1720860309906,45.0,139.42,139.37,11.53]
[1720860310108,45.0,139.42,139.33,1.43497686]
[1720860310408,45.0,139.42,139.37,11.53]
[1720860311007,45.0,139.42,139.38,11.53]
[1720860311508,45.0,139.42,139.37,11.53]
[1720860313411,45.0,139.42,139.38,11.53]
[1720860320105,21.6659,139.43,139.38,11.53]
[1720860320425,15.0675,139.43,139.4,11.53]
[1720860323411,15.0675,139.43,139.41,11.53]
[1720860326829,15.0675,139.43,139.4,11.53]
[1720860327531,15.0675,139.43,139.41,11.53]
[1720860330031,15.0675,139.43,139.4,11.53]
[1720860331231,15.0675,139.43,139.41,11.53]
[1720860331436,18.038,139.46,139.41,11.53]
[1720860331437,22.7506,139.46,139.41,11.53]
[1720860332029,22.7506,139.46,139.42,11.53]
[1720860333113,22.7506,139.46,139.37,1.43401537]
[1720860333435,22.7506,139.46,139.42,11.53]
[1720860334935,27.7699,139.46,139.42,11.53]
[1720860335918,27.7699,139.46,139.41,11.53]
[1720860337029,39.2999,139.46,139.41,11.53]
[1720860340635,39.2999,139.46,139.37,20.0]
[1720860340824,39.2999,139.46,139.4,11.53]
[1720860342627,39.2999,139.46,139.37,20.0]
[1720860342828,39.2999,139.46,139.4,11.53]
[1720860347440,16.5498,139.45,139.37,20.0]
[1720860347645,16.5498,139.45,139.38,11.53]
[1720860347646,11.53,139.43,139.38,11.53]
[1720860348048,15.7772,139.42,139.36,20.0]
[1720860348350,15.7772,139.42,139.37,11.53]
[1720860348523,15.7772,139.42,139.38,20.0]
[1720860348720,27.3072,139.42,139.32,22.6684]
[1720860348938,15.7772,139.42,139.37,11.53]
[1720860349144,15.7772,139.42,139.38,11.53]
[1720860349942,15.7772,139.42,139.37,11.53]
[1720860350136,45.0,139.41,139.32,30.63590749]
[1720860350339,45.0,139.41,139.37,11.53]
[1720860350543,22.0286,139.42,139.37,11.53]
[1720860350843,22.0286,139.42,139.38,11.53]
[1720860352352,22.0286,139.42,139.33,1.4349698]
[1720860352544,22.0286,139.42,139.38,11.53]
[1720860353850,33.5586,139.42,139.37,11.53]
[1720860361445,22.0286,139.42,139.37,11.53]
[1720860367056,22.0286,139.42,139.34,1.43488697]
[1720860367238,22.0286,139.42,139.37,11.53]
[1720860367754,33.5586,139.42,139.37,11.53]
[1720860367955,45.0,139.41,139.37,11.53]
[1720860368150,56.53,139.41,139.36,11.53]
[1720860369359,56.53,139.41,139.33,20.0]
[1720860369559,11.53,139.4,139.35,11.53]
[1720860370941,56.53,139.41,139.35,11.53]
[1720860371156,56.53,139.41,139.33,20.0]
[1720860371457,56.53,139.41,139.35,11.53]
[1720860371657,56.53,139.41,139.36,11.53]
[1720860371968,56.53,139.41,139.33,20.0]
[1720860372257,11.53,139.4,139.35,11.53]
[1720860372754,45.0,139.41,139.34,11.53]
[1720860372755,27.2084,139.39,139.34,11.53]
[1720860373560,15.6784,139.39,139.35,1.43512289]
[1720860373761,15.6784,139.39,139.36,11.53]
[1720860374856,15.6784,139.39,139.35,11.53]
[1720860375060,15.6784,139.39,139.36,11.53]
[1720860376556,15.6784,139.39,139.29,20.0]
[1720860376755,15.6784,139.39,139.35,11.53]
[1720860376962,15.6784,139.39,139.3,45.0]
[1720860377157,15.6784,139.39,139.34,11.53]
[1720860377461,27.2084,139.39,139.34,11.53]
[1720860378045,27.2084,139.39,139.29,27.96750749]
[1720860378251,56.53,139.38,139.29,27.96750749]
[1720860378449,62.8026,139.38,139.33,11.53]
[1720860379651,62.8026,139.38,139.32,11.53]
[1720860379856,11.53,139.37,139.29,7.96750749]
[1720860380158,11.53,139.37,139.3,20.0]
[1720860380353,11.53,139.37,139.32,11.53]
[1720860380757,51.2726,139.38,139.33,11.53]
[1720860380959,62.8026,139.38,139.33,11.53]
[1720860381267,62.8026,139.38,139.31,1.43539068]
[1720860381471,62.8026,139.38,139.33,11.53]
[1720860385056,11.53,139.37,139.32,11.53]
[1720860385668,11.53,139.37,139.29,7.96750749]
[1720860385854,11.53,139.37,139.31,11.53]
[1720860386248,11.53,139.37,139.28,16.2694]
[1720860386249,15.4969,139.36,139.25,14.43680749]
[1720860386457,45.0,139.35,139.31,11.53]
[1720860387157,45.0,139.35,139.3,11.53]
[1720860387475,45.0,139.35,139.31,11.53]
[1720860388371,45.0,139.35,139.26,2.1532082]
[1720860388569,45.0,139.35,139.31,11.53]
[1720860388973,15.4969,139.36,139.31,11.53]
[1720860389151,15.4969,139.36,139.32,11.53]
[1720860389555,45.0,139.35,139.31,11.53]
[1720860392886,15.4969,139.36,139.31,11.53]
[1720860393682,15.4969,139.36,139.32,11.53]
[1720860396292,27.0269,139.36,139.31,11.53]
[1720860396476,15.4969,139.36,139.34,11.53]
[1720860396657,15.4969,139.36,139.32,1.31238989]
[1720860396977,15.4969,139.36,139.33,11.53]
[1720860397180,15.4969,139.36,139.29,20.0]
[1720860397367,15.4969,139.36,139.3,1.43549565]
[1720860397571,15.4969,139.36,139.32,11.53]
[1720860398169,15.4969,139.36,139.33,11.53]
[1720860398481,15.4969,139.36,139.32,11.53]
[1720860398685,15.4969,139.36,139.31,11.53]
[1720860398868,27.0269,139.36,139.31,11.53]
[1720860399469,11.53,139.35,139.3,11.53]
[1720860401385,27.0269,139.36,139.3,11.53]
[1720860403762,27.0269,139.36,139.31,11.53]
[1720860403966,33.5637,139.35,139.29,20.0]
[1720860404168,78.5637,139.35,139.29,11.53]
[1720860406583,11.53,139.34,139.26,0.7176077]
[1720860406785,11.53,139.34,139.29,11.53]
[1720860408283,11.53,139.34,139.26,0.7176077]
[1720860408478,11.53,139.34,139.28,11.53]
[1720860408871,11.53,139.34,139.29,11.53]
[1720860409874,11.53,139.34,139.28,11.53]
[1720860410787,11.53,139.34,139.29,11.53]
[1720860412095,78.5637,139.35,139.29,11.53]
[1720860413996,67.0337,139.35,139.29,11.53]
[1720860414290,22.0337,139.35,139.31,11.53]
[1720860415476,22.0337,139.35,139.26,2.15321353]
[1720860415677,22.0337,139.35,139.26,47.15321353]
[1720860415877,22.0337,139.35,139.3,11.53]
[1720860416600,22.0337,139.35,139.28,1.43564334]
[1720860416800,33.5637,139.35,139.3,11.53]
[1720860417198,33.5637,139.35,139.29,11.53]
[1720860417576,33.5637,139.35,139.26,0.7176077]
[1720860417920,56.53,139.34,139.29,11.53]
[1720860418979,56.53,139.34,139.26,2.15342305]
[1720860419294,56.53,139.34,139.28,11.53]
[1720860419478,56.53,139.34,139.29,11.53]
[1720860420098,45.0,139.34,139.29,11.53]
[1720860422701,33.5637,139.35,139.26,2.15342305]
[1720860422702,22.0337,139.35,139.3,11.53]
[1720860423504,33.5637,139.35,139.3,11.53]
[1720860429105,22.0337,139.35,139.3,11.53]
[1720860429490,33.5637,139.35,139.3,11.53]
[1720860431412,22.0337,139.35,139.3,11.53]
[1720860432901,22.0337,139.35,139.31,11.53]
[1720860433097,22.0337,139.35,139.32,11.53]
[1720860436896,15.9676,139.35,139.28,46.12]
[1720860437230,15.9676,139.35,139.34,11.53]
[1720860438114,15.9676,139.35,139.33,11.53]
[1720860439120,15.9676,139.35,139.34,11.53]
[1720860440118,15.377,139.38,139.34,11.53]
[1720860441031,15.377,139.38,139.35,11.53]
[1720860442104,15.377,139.38,139.34,11.53]
[1720860442414,15.377,139.38,139.33,11.53]
[1720860444531,15.377,139.38,139.29,66.609]
[1720860444702,15.377,139.38,139.33,11.53]
[1720860445708,15.377,139.38,139.34,11.53]
[1720860447021,26.907,139.38,139.32,11.53]
[1720860447321,11.53,139.37,139.29,1.43541107]
[1720860447508,11.53,139.37,139.32,11.53]
[1720860449226,26.907,139.38,139.32,11.53]
[1720860450218,26.907,139.38,139.33,11.53]
[1720860450914,26.907,139.38,139.32,11.53]
[1720860451229,11.53,139.37,139.32,11.53]
[1720860452034,11.53,139.37,139.28,46.12]
[1720860452208,11.53,139.37,139.32,11.53]
[1720860456624,11.53,139.36,139.27,20.0]
[1720860456938,11.53,139.36,139.31,11.53]
[1720860458040,25.377,139.38,139.31,11.53]
[1720860458233,11.53,139.36,139.31,11.53]
[1720860461430,56.53,139.37,139.32,11.53]
[1720860462242,56.53,139.37,139.31,11.53]
[1720860463646,45.0,139.37,139.31,11.53]
[1720860463853,56.53,139.37,139.31,11.53]
[1720860464145,11.53,139.36,139.31,11.53]
[1720860465251,11.53,139.36,139.28,1.43561286]
[1720860465461,21.6214,139.35,139.28,1.43561286]
[1720860465640,78.1514,139.35,139.29,11.53]
[1720860466227,78.1514,139.35,139.27,1.43578015]
[1720860466428,33.1514,139.35,139.29,11.53]
[1720860467242,21.6214,139.35,139.31,11.53]
[1720860467948,21.6214,139.35,139.3,11.53]
[1720860470431,33.1514,139.35,139.3,11.53]
[1720860472950,33.1514,139.35,139.31,11.53]
[1720860472951,21.6214,139.35,139.31,11.53]
[1720860473144,21.6214,139.35,139.3,11.53]
[1720860474544,33.1514,139.35,139.26,15.7372077]
[1720860474747,33.1514,139.35,139.3,11.53]
[1720860475746,33.1514,139.35,139.27,45.0]
[1720860475943,33.1514,139.35,139.3,11.53]
[1720860477051,21.6214,139.35,139.3,11.53]
[1720860477849,21.6214,139.35,139.29,0.96605196]
[1720860478161,21.6214,139.35,139.3,11.53]
[1720860478340,21.6214,139.35,139.31,11.53]
[1720860480972,21.6214,139.35,139.29,1.43565102]
[1720860481276,33.1514,139.35,139.26,0.7176077]
[1720860481439,33.1514,139.35,139.3,11.53]
[1720860481646,21.6214,139.35,139.3,11.53]
[1720860481943,21.6214,139.35,139.31,11.53]
[1720860488478,21.6214,139.35,139.3,11.53]
[1720860489471,21.6214,139.35,139.31,11.53]
[1720860490144,26.6448,139.35,139.3,11.53]
[1720860490350,26.6448,139.35,139.26,45.7176077]
[1720860490554,33.1514,139.35,139.29,11.53]
[1720860490851,5.024,139.34,139.29,11.53]
[1720860491251,38.1748,139.35,139.29,11.53]
[1720860491560,11.53,139.34,139.27,20.0]
[1720860491758,11.53,139.34,139.29,11.53]
[1720860492063,11.53,139.34,139.27,20.0]
[1720860492249,11.53,139.34,139.29,11.53]
[1720860493566,11.53,139.34,139.27,1.43534934]
[1720860493954,38.1748,139.35,139.29,11.53]
[1720860494155,11.53,139.34,139.29,11.53]
[1720860496283,11.53,139.34,139.26,20.7176077]
[1720860496488,11.53,139.34,139.29,11.53]
[1720860496671,16.5538,139.34,139.26,20.7176077]
[1720860496972,16.5538,139.34,139.29,11.53]
[1720860497660,16.5538,139.34,139.28,11.53]
[1720860498075,11.53,139.33,139.28,11.53]
[1720860499276,21.6214,139.35,139.28,11.53]
[1720860499481,11.53,139.34,139.29,11.53]
[1720860499681,33.1514,139.35,139.3,11.53]
[1720860500775,5.0237,139.34,139.27,1.43587628]
[1720860500959,16.5537,139.34,139.27,1.43587628]
[1720860501169,11.53,139.34,139.28,11.53]
[1720860501697,11.53,139.34,139.27,1.43587628]
[1720860501899,11.53,139.34,139.28,11.53]
[1720860504207,11.53,139.34,139.29,11.53]
[1720860505199,11.53,139.34,139.28,11.53]
[1720860505874,11.53,139.34,139.29,11.53]
[1720860506075,33.1514,139.35,139.29,11.53]
[1720860506602,38.1747,139.35,139.29,11.53]
[1720860507387,33.1514,139.35,139.29,11.53]
[1720860507580,22.82365627,139.39,139.3,22.646]
[1720860507581,10.26815627,139.39,139.3,22.646]
[1720860507897,15.0908,139.41,139.37,11.53]
[1720860508194,26.6208,139.41,139.32,1.4350075]
[1720860508394,25.0908,139.41,139.32,1.43500479]
[1720860508603,30.112,139.41,139.32,11.53]
[1720860508905,11.53,139.39,139.33,12.96535375]
[1720860509095,11.53,139.39,139.33,11.53]
[1720860509290,5.0215,139.4,139.33,11.53]
[1720860509492,11.53,139.39,139.33,11.53]
[1720860510584,11.53,139.38,139.33,11.53]
[1720860511104,11.53,139.37,139.27,21.9844]
[1720860511279,11.53,139.37,139.32,11.53]
[1720860513185,11.53,139.37,139.29,1.43544421]
[1720860513386,11.53,139.37,139.32,11.53]
[1720860514298,11.53,139.37,139.29,1.43544421]
[1720860514499,11.53,139.37,139.32,11.53]
[1720860516386,15.1979,139.36,139.29,21.43544421]
[1720860516704,15.1979,139.36,139.32,11.53]
[1720860518484,15.1979,139.36,139.33,11.53]
[1720860520304,15.1979,139.36,139.29,21.43544421]
[1720860520681,15.1979,139.36,139.32,11.53]
[1720860521081,15.1979,139.36,139.29,21.43544421]
[1720860521590,15.1979,139.36,139.31,11.53]
[1720860522210,15.1979,139.36,139.29,21.43544421]
[1720860522405,15.1979,139.36,139.31,11.53]
[1720860522598,26.7279,139.36,139.31,11.53]
[1720860523501,15.1979,139.36,139.29,20.0]
[1720860523710,6.6338,139.38,139.3,46.4352802]
[1720860524015,6.6338,139.38,139.33,11.53]
[1720860524594,18.1638,139.38,139.32,11.53]
[1720860527013,6.6338,139.38,139.32,11.53]
[1720860527194,18.1638,139.38,139.33,11.53]
[1720860529213,18.1638,139.38,139.32,11.53]
[1720860530515,11.53,139.37,139.32,11.53]
[1720860531510,18.1638,139.38,139.32,11.53]
[1720860532217,11.53,139.37,139.32,11.53]
[1720860532421,15.2539,139.36,139.3,1.43544112]
[1720860533126,15.2539,139.36,139.29,20.0]
[1720860533304,15.2539,139.36,139.31,11.53]
[1720860538626,26.7839,139.36,139.31,11.53]
[1720860540631,15.2539,139.36,139.31,11.53]
[1720860545410,15.8759,139.42,139.32,1.43553705]
[1720860545633,11.53,139.4,139.35,11.53]
[1720860546140,11.53,139.41,139.36,11.53]
[1720860546314,15.8759,139.42,139.36,11.53]
[1720860547016,27.4059,139.42,139.36,11.53]
[1720860547432,15.8759,139.42,139.36,11.53]
[1720860547630,27.4059,139.42,139.37,11.53]
[1720860547939,27.4059,139.42,139.36,11.53]
[1720860548138,32.4267,139.42,139.36,11.53]
[1720860549020,11.53,139.41,139.36,11.53]
[1720860549321,15.8759,139.42,139.36,11.53]
[1720860549522,11.53,139.41,139.36,11.53]
[1720860550341,15.8759,139.42,139.36,11.53]
[1720860550529,27.4059,139.42,139.36,11.53]
[1720860551039,32.4267,139.42,139.36,11.53]
[1720860551338,11.53,139.41,139.33,1.43510818]
[1720860551520,11.53,139.41,139.35,11.53]
[1720860553626,11.53,139.41,139.36,11.53]
[1720860559440,11.53,139.41,139.34,1.43508558]
[1720860559826,16.5511,139.41,139.36,11.53]
[1720860563952,16.5511,139.41,139.34,1.43508558]
[1720860564160,16.5511,139.41,139.36,11.53]
[1720860565137,16.5511,139.41,139.34,1.43508558]
[1720860565332,16.5511,139.41,139.36,11.53]
[1720860567155,16.5511,139.41,139.34,1.43508558]
[1720860567468,11.53,139.4,139.35,11.53]
[1720860568542,5.0211,139.41,139.35,11.53]
[1720860568762,11.53,139.4,139.35,11.53]
[1720860569429,11.53,139.4,139.34,1.43508558]
[1720860569634,11.53,139.4,139.35,11.53]
[1720860571431,11.53,139.4,139.33,1.43510985]
[1720860571774,11.53,139.39,139.34,11.53]
[1720860572050,11.53,139.39,139.31,21.4488]
[1720860572259,11.53,139.39,139.34,11.53]
[1720860572767,11.53,139.38,139.33,11.53]
[1720860574442,27.2413,139.38,139.33,11.53]
[1720860577861,15.7113,139.38,139.34,11.53]
[1720860582873,15.7113,139.38,139.35,1.43480348]
[1720860583081,15.7113,139.38,139.36,11.53]
[1720860584477,26.7407,139.41,139.36,11.53]
[1720860584776,26.7407,139.41,139.35,11.53]
[1720860586585,11.53,139.4,139.35,11.53]
[1720860587766,15.2107,139.41,139.35,11.53]
[1720860587969,26.7407,139.41,139.35,11.53]
[1720860588659,31.7619,139.41,139.35,11.53]
[1720860590968,26.7407,139.41,139.35,11.53]
[1720860591688,15.2107,139.41,139.36,12.96484163]
[1720860591866,15.2107,139.41,139.36,11.53]
[1720860592369,31.7618,139.41,139.36,11.53]
[1720860600484,31.7618,139.41,139.35,11.53]
[1720860600863,31.7618,139.41,139.36,1.43498399]
[1720860601171,31.7618,139.41,139.35,11.53]
[1720860601759,31.7618,139.41,139.36,1.4349833]
[1720860602356,31.7618,139.41,139.35,11.53]
[1720860606582,20.2318,139.41,139.35,11.53]
[1720860606758,31.7618,139.41,139.35,11.53]
[1720860607459,26.7407,139.41,139.35,11.53]
[1720860611368,11.53,139.4,139.35,11.53]
[1720860612784,15.2107,139.41,139.35,11.53]
[1720860612983,11.53,139.4,139.35,11.53]
[1720860615791,16.5516,139.4,139.32,6.3023]
[1720860615997,11.53,139.38,139.33,11.53]
[1720860616285,11.53,139.38,139.31,16.5462]
[1720860616286,5.0224,139.38,139.31,11.53]
[1720860616461,11.53,139.37,139.31,11.53]
[1720860616664,11.53,139.37,139.32,11.53]
[1720860618186,5.0219,139.39,139.32,11.53]
[1720860618386,11.53,139.37,139.32,11.53]
[1720860620395,5.0219,139.39,139.32,11.53]
[1720860620594,11.53,139.37,139.3,1.435322]
[1720860620772,11.53,139.37,139.32,11.53]
[1720860624297,11.53,139.36,139.29,6.0173]
[1720860624599,11.53,139.36,139.31,11.53]
[1720860624797,11.53,139.36,139.3,1.43542347]
[1720860624986,11.53,139.36,139.31,11.53]
[1720860625189,11.53,139.36,139.32,1.43546831]
[1720860625497,11.53,139.36,139.31,11.53]
[1720860625702,5.0226,139.37,139.31,11.53]
[1720860625882,11.53,139.36,139.31,11.53]
[1720860629418,11.53,139.36,139.3,1.43534866]
[1720860629716,11.53,139.36,139.31,11.53]
[1720860633404,16.553,139.36,139.31,11.53]
[1720860633605,11.53,139.34,139.29,12.96553641]
[1720860633807,11.53,139.34,139.29,12.96571501]
[1720860633985,16.5537,139.34,139.26,2.15331337]
[1720860634188,16.5537,139.34,139.29,11.53]
[1720860634806,11.53,139.34,139.29,11.53]
[1720860638314,16.5537,139.34,139.27,1.43572017]
[1720860638511,16.5537,139.34,139.28,11.53]
[1720860639507,11.53,139.34,139.28,11.53]
[1720860641197,11.53,139.34,139.29,11.53]
[1720860643696,11.53,139.35,139.3,1.43571222]
[1720860643891,11.53,139.34,139.29,11.53]
[1720860649015,11.53,139.34,139.3,1.43560365]
[1720860649422,11.53,139.34,139.29,11.53]
[1720860649603,11.53,139.34,139.3,1.43560823]
[1720860649807,11.53,139.34,139.29,11.53]
[1720860650006,11.53,139.34,139.3,1.4356134]
[1720860650229,11.53,139.34,139.29,11.53]
[1720860652020,11.53,139.34,139.27,1.43560573]
[1720860652216,11.53,139.34,139.29,11.53]
[1720860653228,5.0233,139.35,139.29,11.53]
[1720860653429,11.53,139.34,139.29,11.53]
[1720860655815,16.5536,139.34,139.29,11.53]
[1720860656016,16.5536,139.34,139.26,45.7176077]
[1720860656212,16.5536,139.34,139.29,11.53]
[1720860656616,11.53,139.34,139.26,45.7176077]
[1720860656817,11.53,139.34,139.28,11.53]
[1720860657637,11.53,139.34,139.27,1.43562114]
[1720860657828,11.53,139.34,139.28,11.53]
[1720860658127,16.5833,139.33,139.27,1.43562114]
[1720860658330,28.1133,139.33,139.27,12.96579184]
[1720860658631,28.1133,139.33,139.27,11.53]
[1720860659139,11.53,139.32,139.27,11.53]
[1720860662233,16.5833,139.33,139.27,11.53]
[1720860662448,28.1133,139.33,139.28,1.43580497]
[1720860662839,28.1133,139.33,139.27,11.53]
[1720860664635,28.1133,139.33,139.26,2.15341808]
[1720860664817,28.1133,139.33,139.26,22.15341808]
[1720860665017,28.1133,139.33,139.28,11.53]
[1720860666034,28.1133,139.33,139.26,2.15341808]
[1720860666035,11.53,139.32,139.26,2.15341808]
[1720860666339,11.53,139.31,139.26,12.2476077]
[1720860667117,11.53,139.31,139.26,0.7176077]
[1720860667617,11.53,139.31,139.26,12.2476077]
[1720860668436,11.53,139.32,139.27,12.96587854]
[1720860668641,11.53,139.32,139.27,11.53]
[1720860669517,16.2149,139.3,139.26,12.2476077]
[1720860669721,11.53,139.29,139.26,0.7176077]
[1720860671750,27.7449,139.3,139.26,0.7176077]
[1720860675134,11.53,139.29,139.26,0.7176077]
[1720860676040,11.53,139.28,139.26,0.7176077]
[1720860676932,11.53,139.29,139.26,0.7176077]
[1720860678942,22.8277,139.3,139.26,0.7176077]
[1720860679132,11.53,139.29,139.26,0.7176077]
[1720860681434,11.53,139.28,139.26,0.7176077]
[1720860682836,11.53,139.29,139.26,0.7176077]
[1720860686747,27.8528,139.3,139.26,0.7176077]
[1720860686948,11.53,139.29,139.26,0.7176077]
[1720860692447,11.53,139.28,139.26,0.7176077]
[1720860692628,16.556,139.28,139.26,0.7176077]
[1720860693459,11.53,139.28,139.26,0.7176077]
[1720860694343,11.53,139.27,139.26,0.7176077]
[1720860695335,61.5562,139.27,139.26,0.7176077]
[1720860696671,16.5562,139.27,139.26,0.7176077]
[1720860696954,32.6503,139.27,139.26,0.7176077]
[1720860697158,77.6503,139.27,139.26,0.7176077]
[1720860704268,10.0,139.25,139.17,11.53]
[1720860704566,11.53,139.22,139.17,11.53]
[1720860705265,11.53,139.22,139.16,1.43678821]
[1720860705475,11.53,139.22,139.16,12.96678821]
[1720860705849,11.53,139.22,139.17,11.53]
[1720860706050,11.53,139.23,139.18,11.53]
[1720860706877,11.53,139.22,139.17,11.53]
[1720860708178,11.53,139.21,139.16,11.53]
[1720860708365,5.0273,139.24,139.16,12.96694269]
[1720860708680,21.42,139.25,139.17,11.53]
[1720860708884,11.53,139.23,139.17,11.53]
[1720860709084,11.53,139.23,139.18,12.96684481]
[1720860709272,10.0,139.25,139.18,11.53]
[1720860709482,11.53,139.24,139.19,12.96671522]
[1720860709691,11.53,139.24,139.19,11.53]
[1720860711603,11.53,139.24,139.16,1.43670542]
[1720860711900,11.53,139.23,139.18,11.53]
[1720860712196,11.53,139.23,139.18,1.43670738]
[1720860712501,11.53,139.23,139.18,11.53]
[1720860717206,26.0941,139.27,139.16,45.0]
[1720860717386,21.1205,139.27,139.17,21.43657786]
[1720860717574,11.53,139.25,139.2,11.53]
[1720860718199,21.1205,139.27,139.2,11.53]
[1720860718496,11.53,139.25,139.2,11.53]
[1720860719711,11.53,139.24,139.19,11.53]
[1720860720106,11.53,139.23,139.17,31.53]
[1720860722110,11.53,139.23,139.18,11.53]
[1720860725319,11.53,139.24,139.17,20.0]
[1720860725493,11.53,139.23,139.18,11.53]
[1720860725699,11.53,139.23,139.15,22.2448]
[1720860725916,11.53,139.23,139.17,11.53]
[1720860726126,11.53,139.23,139.16,20.0]
[1720860726417,11.53,139.23,139.17,12.96681188]
[1720860727725,11.53,139.23,139.17,11.53]
[1720860727925,11.53,139.23,139.17,12.96681081]
[1720860728220,11.53,139.23,139.18,12.96681079]
[1720860728901,11.53,139.23,139.18,11.53]
[1720860733023,11.53,139.23,139.17,12.96680305]
[1720860733226,11.53,139.23,139.17,11.53]
[1720860734033,11.53,139.23,139.17,12.966798]
[1720860734234,11.53,139.23,139.17,11.53]
[1720860736100,11.53,139.23,139.17,12.96680574]
[1720860736624,11.53,139.23,139.17,11.53]
[1720860738229,37.7339,139.23,139.16,21.43680439]
[1720860738404,11.53,139.22,139.16,12.96680439]
[1720860739123,11.53,139.22,139.16,11.53]
[1720860740204,11.53,139.21,139.16,11.53]
[1720860740431,11.53,139.21,139.15,11.53]
[1720860740724,11.53,139.21,139.12,0.8580235]
[1720860740926,11.53,139.2,139.15,11.53]
[1720860741107,21.53,139.2,139.14,11.53]
[1720860741312,11.53,139.2,139.14,11.53]
[1720860741525,37.7339,139.2,139.14,11.53]
[1720860741701,37.7339,139.2,139.13,1.43707324]
[1720860741702,11.53,139.19,139.13,1.43707324]
[1720860741906,11.53,139.19,139.13,12.96707324]